fUSD/lending_fUSD_20240115
["ID","MTS","AMOUNT","RATE_DAILY","PERIOD"]
[311677702,1705319432100,-171.12556089,0.000249,2]
[311677703,1705319432110,-1350.0,0.00025,3]
[311677705,1705319432119,-630.56759467,0.00025,2]
[311677707,1705319432128,-296.75,0.00025051,2]
[311677709,1705319432138,-218.15627413,0.00025434,3]
[311677711,1705319432147,-218.15627412,0.00025434,3]
[311677712,1705319432156,-698.65884418,0.00025435,3]
[311677714,1705319432166,-398.97266352,0.00025435,3]
[311677715,1705319432176,-1000.0,0.00025435,3]
[311677716,1705319432186,-185.52093911,0.00025435,3]
[311677717,1705319432195,-500.41780317,0.0002544,2]
[311677718,1705319432204,-408.44,0.00025613,2]
[311677719,1705319432214,-250.0,0.00025694,2]
[311677720,1705319432223,-500.0,0.00025736,2]
[311677721,1705319432232,-200.0,0.00025736,2]
[311677722,1705319432242,-156.75,0.00025832,2]
[311677723,1705319432253,-500.41780317,0.00025979,2]
[311677724,1705319432263,-5000.0,0.00026,2]
[311677725,1705319432272,-182.53591338,0.00026076,5]
[311677726,1705319432281,-155.0,0.00026076,2]
[311677728,1705319432290,-30437.74605147,0.00026076,2]
[311677731,1705319432310,-381.255,0.00026076,2]
[311677733,1705319432325,-1929.98680357,0.00026076,2]
[311677738,1705319432359,-17251.01214496,0.00026076,2]
[311677740,1705319432369,-150.0,0.00026079,2]
[311677742,1705319432377,-404.11,0.00026549,2]
[311677743,1705319432386,-192.94,0.00026563,2]
[311677744,1705319432395,-5326.24,0.00026575,2]
[311677745,1705319432404,-4439.0357,0.000269,2]
[311677746,1705319432413,-342.74490247,0.000269,2]
[311677747,1705319432425,-162.41309753,0.000269,2]
[311677748,1705319432434,-137.58690247,0.000269,2]
[311677751,1705319438005,-205.0,0.00022675,2]
[311677752,1705319438015,-71.78571,0.00026408,7]
[311677753,1705319438027,-133.21429,0.00026408,7]
[311677754,1705319438037,-177.78571,0.000269,2]
[311677780,1705319442740,-397.61541485,0.000269,2]
[311677781,1705319442749,-129289.95553674,0.00027,2]
[311677782,1705319442758,-1400.0,0.00027,3]
[311677783,1705319442767,-1676.75211693,0.00027,2]
[311677784,1705319442776,-712.98802723,0.00027058,2]
[311677785,1705319442785,-156.75,0.00027179,2]
[311677786,1705319442794,-712.98802723,0.00027216,2]
[311677787,1705319442803,-150.0,0.000273,2]
[311677788,1705319442812,-296.75,0.00027315,2]
[311677789,1705319442821,-712.98802723,0.00027374,2]
[311677790,1705319442830,-155.0,0.00027397,2]
[311677791,1705319442839,-250.0,0.00027397,2]
[311677792,1705319442848,-5692.02220698,0.000274,2]
[311677793,1705319442858,-250.0,0.000274,2]
[311677794,1705319442866,-7009.00144059,0.000274,2]
[311677795,1705319442875,-1000.0,0.00027445,2]
[311677796,1705319442884,-712.98802723,0.00027532,2]
[311677797,1705319442893,-161.89,0.00027539,2]
[311677798,1705319442902,-192.94,0.00027541,2]
[311677799,1705319442911,-712.98802723,0.00027689,2]
[311677800,1705319442921,-712.98802723,0.00027847,2]
[311677801,1705319442930,-688.35613867,0.00028,2]
[311677802,1705319442939,-150.0,0.00028,2]
[311677803,1705319442948,-3430.28014506,0.00028,2]
[311677804,1705319442989,-10361.49364502,0.00028,2]
[311677805,1705319442998,-712.98802723,0.00028005,2]
[311677806,1705319443006,-712.98802723,0.00028163,2]
[311677807,1705319443015,-712.98802723,0.00028321,2]
[311677808,1705319443024,-712.98802723,0.00028479,2]
[311677809,1705319443033,-192.94,0.0002852,2]
[311677810,1705319443043,-712.98802723,0.00028637,2]
[311677811,1705319443051,-150.0,0.00028641,2]
[311677812,1705319443060,-306.20781332,0.00028657,6]
[311677813,1705319443069,-800.0,0.00028657,5]
[311677815,1705319443078,-150.0,0.00028673,2]
[311677817,1705319443087,-150.0,0.00028701,2]
[311677819,1705319443096,-150.0,0.00028706,2]
[311677820,1705319443106,-1500.0,0.00028728,2]
[311677821,1705319443115,-150.0,0.0002873,2]
[311677822,1705319443126,-294.3527193,0.00028744,2]
[311677824,1705319443136,-155.0,0.00028767,2]
[311677826,1705319443145,-150.0,0.00028772,2]
[311677828,1705319443155,-1500.0,0.00028796,2]
[311677830,1705319443165,-150.0,0.000288,2]
[311677832,1705319443177,-150.0,0.000288,2]
[311677833,1705319443185,-750.0,0.000288,2]
[311677834,1705319443196,-150.0,0.0002881,2]
[311677835,1705319443206,-408.44,0.00028815,2]
[311677836,1705319443216,-150.0,0.00028829,2]
[311677837,1705319443226,-150.0,0.00028836,2]
[311677838,1705319443237,-1500.0,0.00028837,2]
[311677839,1705319443247,-150.0,0.0002884,2]
[311677840,1705319443257,-212.87440586,0.00028887,2]
[311677841,1705319443268,-242.43603172,0.00028887,2]
[311677842,1705319443277,-2278.48401393,0.00028887,2]
[311677843,1705319443288,-4235.00368365,0.00028887,2]
[311677844,1705319443300,-20869.43111637,0.00028887,2]
[311677845,1705319443310,-229.73781321,0.00028887,2]
[311677846,1705319443353,-2772.54614939,0.00028887,2]
[311677847,1705319443364,-2034.4681641,0.00028887,2]
[311677848,1705319443373,-195.83068651,0.00028887,2]
[311677849,1705319443407,-230.35858609,0.00028887,2]
[311677850,1705319443417,-1361.88983074,0.00028887,2]
[311677851,1705319443426,-4397.20122054,0.00028888,2]
[311677852,1705319443454,-1257.67727363,0.00028888,2]
[311677867,1705319446146,-630.56759467,0.00026999,2]
[311677868,1705319446156,-640.65062061,0.00028795,2]
[311677869,1705319446190,-72.33740662,0.00028795,2]
[311677870,1705319446199,-680.94491537,0.00028887,2]
[311677871,1705319446208,-1311.99638549,0.00028888,2]
[311677872,1705319446218,-3779.64590151,0.00028888,2]
[311677873,1705319446230,-275.707,0.00028888,2]
[311677874,1705319446261,-1472.66898067,0.00028888,2]
[311677875,1705319446274,-264.30000001,0.00028888,2]
[311677876,1705319446292,-2882.12003883,0.00028888,2]
[311677877,1705319446302,-38630.53766674,0.00028888,2]
[311677878,1705319446314,-3687.05764394,0.00028888,2]
[311677879,1705319522093,996.6260501,0.00022078,2]
[311677880,1705319556300,283.07357979,0.00022078,2]
[311677881,1705319558625,2942.16245854,0.00022078,2]
[311677882,1705319558650,4892.86208843,0.00022078,2]
[311677883,1705319558674,4892.86208843,0.00022078,2]
[311677884,1705319558700,4892.86208843,0.00022078,2]
[311677885,1705319558726,4892.86208843,0.00022078,2]
[311677886,1705319558751,4892.86208843,0.00022078,2]
[311677887,1705319558775,4892.86208843,0.00022078,2]
[311677888,1705319558800,4892.86208843,0.00022078,2]
[311677889,1705319558823,2592.64549352,0.00022078,2]
[311677890,1705319572276,318.79567022,0.00022078,2]
[311677892,1705319992200,188.3,0.00026006,120]
[311677893,1705320488643,2346.42,0.000301,90]
[311677894,1705320504345,-22597.01833293,0.00022748,2]
[311677895,1705320504379,-153.63,0.00022811,2]
[311677896,1705320504413,-467.1520653,0.00022898,2]
[311677897,1705320504461,-256.18691296,0.000229,2]
[311677898,1705320504494,-184.78419498,0.000229,2]
[311677899,1705320504527,-249.54580954,0.000229,2]
[311677900,1705320504563,-1258.0188025,0.000229,2]
[311677901,1705320504597,-184.67736102,0.00022917,2]
[311677902,1705320504631,-356.1932364,0.00022917,2]
[311677903,1705320504667,-1756.76903652,0.00022979,2]
[311677904,1705320504692,-16755.56005919,0.0002298,2]
[311677905,1705320504711,-153.63,0.0002298,2]
[311677906,1705320504731,-467.1520653,0.0002298,2]
[311677907,1705320504746,-256.18691296,0.0002298,2]
[311677908,1705320504799,-184.78419498,0.0002298,2]
[311677909,1705320504814,-249.54580954,0.0002298,2]
[311677910,1705320504826,-1258.0188025,0.0002298,2]
[311677911,1705320504837,-184.67736102,0.0002298,2]
[311677912,1705320504861,-356.1932364,0.0002298,2]
[311677913,1705320504876,-1756.76903652,0.0002298,2]
[311677914,1705320504896,-15913.50676944,0.0002298,2]
[311677922,1705320632266,-420.30646271,0.00022749,2]
[311677923,1705320632278,-580.34234449,0.00022749,2]
[311677926,1705320632297,-346.48303694,0.00022749,2]
[311677954,1705320637921,-21249.88648879,0.00022749,2]
[311677955,1705320637930,-408.75805712,0.00022898,2]
[311677956,1705320637940,-237.4621576,0.00022917,2]
[311677957,1705320637950,-6821.63395926,0.00022979,2]
[311677958,1705320637960,-186109.0851168,0.0002298,2]
[311677959,1705320637972,-1162.31847477,0.0002298,2]
[311677960,1705320637983,-21288.50000001,0.0002298,2]
[311677961,1705320637998,-283.399807,0.0002298,2]
[311677962,1705320638034,-693.72201928,0.0002298,2]
[311677963,1705320638045,-687.98644854,0.0002298,2]
[311677964,1705320638057,-951.26132272,0.0002298,2]
[311677965,1705320638068,-455.23866117,0.0002298,2]
[311677966,1705320638079,-350.26905264,0.0002298,2]
[311677967,1705320638146,-592.08019123,0.0002298,2]
[311677968,1705320638157,-2490.97927769,0.0002298,2]
[311677969,1705320638201,-5479.92326048,0.0002298,2]
[311677970,1705320638258,-2342.65834162,0.0002298,2]
[311677993,1705320640526,-21762.3689472,0.0002298,2]
[311677994,1705320640541,-296.3246523,0.0002298,2]
[311677995,1705320640765,-8644.26737203,0.0002298,2]
[311677996,1705320641128,-1414.14450651,0.0002298,2]
[311677997,1705320641186,-13152.2822622,0.0002298,2]
[311677999,1705320641196,-285.07,0.00022997,2]
[311678000,1705320641205,-3902.55904061,0.00022998,2]
[311678001,1705320641214,-282.76,0.00022998,2]
[311678002,1705320641224,-2198.77657572,0.00022999,4]
[311678008,1705320641234,-40436.80644475,0.00023,2]
[311678029,1705320643079,-20517.25618454,0.00023,2]
[311678030,1705320643090,-277.059999,0.00023,2]
[311678031,1705320643180,-406.18224181,0.00023,2]
[311678035,1705320645969,-1528.52999989,0.00023,2]
[311678036,1705320645980,-5227.55732947,0.00023,2]
[311678037,1705320645991,-2602.55160157,0.00023,2]
[311678038,1705320646002,-2151.0,0.00023,2]
[311678039,1705320646013,-955.1551844,0.00023,2]
[311678040,1705320646024,-269.68,0.00023,2]
[311678041,1705320646035,-2487.50960657,0.00023,2]
[311678042,1705320646046,-3520.9125265,0.00023,2]
[311678043,1705320646061,-50014.21429355,0.00023,2]
[311678044,1705320646072,-8432.52652087,0.00023,2]
[311678045,1705320646102,-15217.39691154,0.00023,2]
[311678046,1705320646113,-74744.79060169,0.00023,2]
[311678047,1705320646124,-50744.25772788,0.00023,2]
[311678048,1705320646135,-1188.57896401,0.00023,2]
[311678049,1705320646154,-1750.39281636,0.00023,2]
[311678050,1705320646165,-354.72076362,0.00023,2]
[311678051,1705320646204,-339.66350361,0.00023,2]
[311678052,1705320646215,-299.02282421,0.00023,2]
[311678054,1705320754153,-247.17935471,0.00022768,2]
[311678055,1705320754174,-4805.96333416,0.00022769,2]
[311678056,1705320754194,-237.06851912,0.000229,2]
[311678057,1705320754215,-253.34039125,0.00022917,2]
[311678058,1705320754237,-221.55945487,0.00022998,2]
[311678059,1705320754258,-844.20155722,0.00022998,2]
[311678060,1705320754278,-240.49000621,0.00022998,2]
[311678061,1705320754300,-500.75697251,0.00022999,2]
[311678062,1705320754321,-314.03878774,0.00022999,2]
[311678063,1705320754342,-232.54992676,0.00022999,2]
[311678064,1705320754363,-6190.00923641,0.00022999,2]
[311678065,1705320754385,-3042.69319317,0.00022999,2]
[311678066,1705320754408,-135763.0113543,0.00023,2]
[311678067,1705320767000,-1000.0,0.00023,2]
[311678068,1705320768096,-1000.0,0.00023,2]
[311678069,1705320768756,-1000.0,0.00023,2]
[311678070,1705320768849,-1000.0,0.00023,2]
[311678071,1705320769279,-1000.0,0.00023,2]
[311678072,1705320769489,-1000.0,0.00023,2]
[311678073,1705320776949,-150.0,0.00023,2]
[311678074,1705320797080,177.01,0.00020543,2]
[311678075,1705320810624,405.04036267,0.00021849,2]
[311678076,1705320868806,159.31334332,0.00021,20]
[311678078,1705321369881,2000.0,0.00021999,2]
[311678079,1705321511197,250.0,0.000205,2]
[311678080,1705321537580,11462.6062016,0.0003,90]
[311678090,1705321832752,-1363.0304551,0.00022799,2]
[311678091,1705321832762,-393.2667449,0.000228,2]
[311678092,1705321832774,-1139.07017581,0.000228,2]
[311678093,1705321832970,-4271.0,0.000228,2]
[311678094,1705321833000,-449.57833095,0.000228,2]
[311678103,1705321838153,-757.620545,0.000228,2]
[311678104,1705321838272,-16470.09707654,0.000228,2]
[311678105,1705321838282,-5000.0,0.000229,2]
[311678106,1705321838292,-250.52549836,0.000229,2]
[311678107,1705321838301,-225.21509324,0.000229,2]
[311678108,1705321838312,-1153.18390231,0.000229,2]
[311678109,1705321838321,-357.66329998,0.000229,2]
[311678110,1705321838331,-246.50580772,0.00022999,2]
[311678111,1705321838340,-208.52721044,0.00022999,2]
[311678112,1705321838350,-26384.11770279,0.00022999,2]
[311678113,1705321838383,-254.11,0.00022999,2]
[311678114,1705321838405,-7095.45111415,0.00022999,2]
[311678115,1705321838414,-231.84627581,0.00022999,2]
[311678116,1705321838425,-44.95715143,0.00023,2]
[311678117,1705321838676,-298889.8589725,0.00023,2]
[311678118,1705321838687,-718782.98423721,0.00023,2]
[311678119,1705321838696,-252316.44549,0.00023,2]
[311678120,1705321838706,-378.91,0.00023059,2]
[311678121,1705321838715,-250.52549763,0.00023168,2]
[311678122,1705321838724,-225.21509309,0.00023268,2]
[311678123,1705321838733,-250.52549763,0.00023436,2]
[311678124,1705321838743,-3204.0,0.000235,2]
[311678125,1705321838752,-225.21509309,0.00023637,2]
[311678126,1705321838761,-250.52549763,0.00023704,2]
[311678127,1705321838770,-1153.18390221,0.00023969,2]
[311678128,1705321838780,-250.52549763,0.00023972,2]
[311678129,1705321838789,-182.33955954,0.00024,2]
[311678130,1705321838799,-225.21509309,0.00024005,2]
[311678131,1705321838808,-205.0,0.0002414,2]
[311678132,1705321838817,-212.0,0.0002414,2]
[311678134,1705321838826,-250.52549763,0.0002424,2]
[311678136,1705321838835,-225.21509309,0.00024374,2]
[311678138,1705321838845,-250.52549763,0.00024508,2]
[311678141,1705321838855,-357.66329995,0.00024579,2]
[311678142,1705321838865,-174.0,0.00024645,2]
[311678144,1705321838874,-500.0,0.000247,2]
[311678146,1705321838884,-853.22,0.0002473,2]
[311678148,1705321838893,-2000.0,0.00024734,2]
[311678150,1705321838902,-225.21509309,0.00024742,2]
[311678152,1705321838911,-522.26,0.00024763,2]
[311678154,1705321838924,-685.41,0.00024775,2]
[311678156,1705321838933,-250.52549763,0.00024776,2]
[311678157,1705321838942,-284.65,0.00024793,2]
[311678160,1705321838952,-569.0,0.00024863,2]
[311678162,1705321838961,-177.91,0.00024909,2]
[311678164,1705321838971,-5167.35,0.00024968,2]
[311678166,1705321838980,-167.23848345,0.00025,2]
[311678168,1705321838990,-303.21915795,0.00025,2]
[311678170,1705321839000,-201.87194842,0.00025,2]
[311678172,1705321839009,-655.35682098,0.00025,2]
[311678174,1705321839019,-1073.41805393,0.00025,2]
[311678176,1705321839028,-275.20016538,0.00025,2]
[311678178,1705321839038,-1350.0,0.00025,3]
[311678180,1705321839047,-1153.18390221,0.00025037,2]
[311678182,1705321839056,-250.52549763,0.00025044,2]
[311678184,1705321839065,-225.21509309,0.00025111,2]
[311678186,1705321839075,-250.0,0.00025114,2]
[311678188,1705321839084,-163.19,0.00025163,2]
[311678190,1705321839094,-250.0,0.0002517,2]
[311678192,1705321839103,-602.45,0.00025174,2]
[311678194,1705321839112,-731.28,0.00025204,2]
[311678196,1705321839121,-250.52549763,0.00025312,2]
[311678198,1705321839130,-378.91,0.00025323,2]
[311678200,1705321839139,-10000.0,0.00025375,2]
[311678202,1705321839149,-153.94521652,0.00025429,3]
[311678204,1705321839158,-1000.0,0.00025429,3]
[311678205,1705321839167,-412.49253086,0.00025429,3]
[311678207,1705321839179,-1000.0,0.00025429,3]
[311678209,1705321839189,-208.29763724,0.00025429,3]
[311678211,1705321839197,-1000.0,0.00025429,3]
[311678213,1705321839207,-162.24912742,0.00025429,3]
[311678215,1705321839217,-211.66306782,0.00025429,3]
[311678217,1705321839227,-272.18707223,0.0002543,3]
[311678219,1705321839236,-415.52327317,0.0002543,3]
[311678221,1705321839246,-290.50891088,0.00025431,3]
[311678224,1705321839255,-269.88672852,0.00025431,3]
[311678226,1705321839265,-618.27386727,0.00025431,3]
[311678228,1705321839275,-251.94311988,0.00025431,3]
[311678230,1705321839284,-153.54,0.00025473,2]
[311678232,1705321839294,-225.21509309,0.00025479,2]
[311678234,1705321839303,-162.05,0.00025502,2]
[311678236,1705321839313,-1245.56,0.00025514,2]
[311678238,1705321839322,-250.52549763,0.0002558,2]
[311678240,1705321839332,-168.79,0.00025598,2]
[311678242,1705321839341,-157.01,0.00025605,2]
[311678244,1705321839350,-200.0,0.00025644,2]
[311678246,1705321839360,-1033.12,0.00025767,2]
[311678248,1705321839370,-284.65,0.00025772,2]
[311678250,1705321839379,-225.21509309,0.00025847,2]
[311678252,1705321839389,-250.52549763,0.00025848,2]
[311678254,1705321839399,-1595.13,0.00025859,2]
[311678256,1705321839413,-168.79,0.00025865,2]
[311678258,1705321839422,-177.29,0.00025879,2]
[311678260,1705321839432,-5000.0,0.00026,2]
[311678262,1705321839442,-150.0,0.00026079,2]
[311678264,1705321839451,-1153.18390221,0.00026106,2]
[311678266,1705321839460,-250.52549763,0.00026116,2]
[311678268,1705321839470,-168.79,0.00026132,2]
[311678270,1705321839479,-169.72,0.00026139,2]
[311678272,1705321839489,-225.21509309,0.00026216,2]
[311678274,1705321839498,-357.66329995,0.00026258,3]
[311678276,1705321839507,-250.52549763,0.00026384,2]
[311678277,1705321839517,-168.79,0.00026399,2]
[311678278,1705321839526,-4438.53,0.00026575,2]
[311678279,1705321839535,-225.21509309,0.00026584,2]
[311678280,1705321839544,-250.52549763,0.00026652,2]
[311678281,1705321839553,-168.79,0.00026666,2]
[311678282,1705321839562,-200.0,0.0002671,2]
[311678283,1705321839571,-728.64,0.00026728,2]
[311678284,1705321839580,-284.65,0.0002675,2]
[311678285,1705321839589,-250.52549763,0.00026919,2]
[311678287,1705321839598,-168.79,0.00026932,2]
[311678289,1705321839608,-225.21509309,0.00026953,2]
[311678291,1705321839617,-1645.11646925,0.00027,2]
[311678293,1705321839627,-1400.0,0.00027,3]
[311678295,1705321839636,-1153.18390221,0.00027174,2]
[311678297,1705321839645,-250.52549763,0.00027187,2]
[311678299,1705321839655,-164.12,0.00027306,2]
[311678301,1705321839664,-225.21509309,0.00027321,2]
[311678303,1705321839674,-155.0,0.00027397,2]
[311678305,1705321839683,-250.0,0.00027397,2]
[311678307,1705321839692,-1790.70359907,0.000274,2]
[311678309,1705321839701,-250.0,0.000274,2]
[311678311,1705321839710,-250.52549763,0.00027455,2]
[311678313,1705321839719,-378.91,0.00027587,2]
[311678315,1705321839728,-225.21509309,0.00027689,2]
[311678317,1705321839737,-164.12,0.00027696,2]
[311678319,1705321839746,-250.52549763,0.00027723,2]
[311678321,1705321839756,-284.65,0.00027729,2]
[311678323,1705321839765,-357.66329995,0.00027937,3]
[311678325,1705321839776,-250.52549763,0.00027991,2]
[311678327,1705321839786,-202.92894676,0.00028,2]
[311678329,1705321839796,-903.75,0.00028,2]
[311678331,1705321839806,-741.33200369,0.0002802,2]
[311678333,1705321839816,-225.21509309,0.00028058,2]
[311678335,1705321839829,-164.12,0.00028086,2]
[311678337,1705321839839,-205.0,0.00028125,8]
[311678339,1705321839849,-1153.18390221,0.00028243,2]
[311678343,1705321839870,-250.52549763,0.00028259,2]
[311678345,1705321839880,-602.45,0.0002832,2]
[311678347,1705321839890,-731.28,0.00028354,2]
[311678349,1705321839899,-150.6,0.00028397,2]
[311678351,1705321839910,-150.0,0.00028397,2]
[311678353,1705321839919,-150.0,0.00028397,2]
[311678355,1705321839929,-150.0,0.00028397,2]
[311678357,1705321839939,-150.0,0.00028397,2]
[311678359,1705321839949,-157.41,0.00028397,2]
[311678361,1705321839958,-164.12,0.00028476,2]
[311678363,1705321839968,-1000.0,0.000285,2]
[311678365,1705321839978,-250.52549763,0.00028527,2]
[311678367,1705321839987,-199.90214082,0.00028655,2]
[311678369,1705321839997,-500.0,0.00028657,2]
[311678371,1705321840007,-200.0,0.00028657,3]
[311678374,1705321840017,-800.0,0.00028657,5]
[311678376,1705321840027,-284.65,0.00028707,2]
[311678378,1705321840036,-150.0,0.0002876,2]
[311678380,1705321840045,-155.0,0.00028767,2]
[311678382,1705321840055,-150.0,0.00028772,2]
[311678384,1705321840065,-250.52549763,0.00028795,2]
[311678386,1705321840074,-531.240549,0.000288,2]
[311678388,1705321840084,-750.0,0.000288,2]
[311678390,1705321840094,-150.0,0.000288,2]
[311678392,1705321840103,-2931.64415,0.000288,2]
[311678394,1705321840113,-2039.86779498,0.00028828,2]
[311678396,1705321840122,-1500.0,0.00028844,2]
[311678398,1705321840132,-559.44905422,0.00028848,2]
[311678400,1705321840141,-150.0,0.0002885,2]
[311678402,1705321840151,-164.12,0.00028866,2]
[311678404,1705321840161,-59775.96639475,0.0002888,2]
[311678406,1705321840172,-163.4983616,0.00028887,2]
[311678408,1705321840182,-680.94491536,0.00028887,2]
[311678410,1705321840191,-714.58,0.00028887,2]
[311678412,1705321840201,-155.0,0.00028888,2]
[311678414,1705321840211,-543.69034289,0.00028888,2]
[311678416,1705321840220,-17912.68488865,0.00028888,2]
[311678418,1705321840230,-341.63773526,0.00028888,2]
[311678420,1705321840240,-10598.02269833,0.00028888,2]
[311678422,1705321840250,-571.8219575,0.00028888,2]
[311678425,1705321840260,-227779.29918866,0.00028889,3]
[311678427,1705321840269,-1746.5571667,0.00028928,2]
[311678429,1705321840278,-47504.2320349,0.00028928,2]
[311678431,1705321840287,-500.0,0.00028948,2]
[311678433,1705321840296,-63230.78631757,0.00028965,2]
[311678435,1705321840306,-3612.70936163,0.00029,15]
[311678437,1705321840315,-1000.0,0.00029,7]
[311678439,1705321840325,-10000.0,0.00029,2]
[311678441,1705321840336,-29739.60926048,0.00029,2]
[311678443,1705321840346,-1450.0,0.00029,3]
[311678445,1705321840359,-352.1,0.00029,2]
[311678447,1705321840369,-812.08455662,0.00029,2]
[311678449,1705321840379,-230.08829952,0.00029,2]
[311678451,1705321840388,-150.56489272,0.00029,2]
[311678454,1705321840399,-250.52549763,0.00029063,2]
[311678456,1705321840412,-4328.7282253,0.000291,2]
[311678458,1705321840422,-151.32620992,0.000291,2]
[311678460,1705321840432,-401.46,0.00029178,2]
[311678462,1705321840441,-401.46,0.00029178,2]
[311678464,1705321840450,-401.46,0.00029178,2]
[311678466,1705321840460,-400.7,0.00029178,2]
[311678468,1705321840470,-500.0,0.00029212,2]
[311678470,1705321840479,-164.12,0.00029256,2]
[311678473,1705321840489,-1153.18390221,0.00029311,2]
[311678475,1705321840499,-250.52549763,0.00029331,2]
[311678477,1705321840508,-31253.55809832,0.0002937,15]
[311678479,1705321840517,-500.0,0.00029476,2]
[311678481,1705321840527,-1104.66446228,0.00029498,2]
[311678483,1705321840537,-187.78095067,0.000295,3]
[311678485,1705321840546,-207.0,0.0002957,2]
[311678488,1705321840556,-250.52549763,0.00029599,2]
[311678491,1705321840566,-158.30810506,0.00029615,2]
[311678493,1705321840575,-357.66329995,0.00029617,4]
[311678495,1705321840586,-41382.0,0.00029644,4]
[311678497,1705321840595,-164.12,0.00029646,2]
[311678500,1705321840605,-284.65,0.00029686,2]
[311678502,1705321840615,-116694.75713056,0.00029696,4]
[311678504,1705321840624,-25867.0,0.00029715,2]
[311678506,1705321840634,-500.0,0.00029739,2]
[311678508,1705321840644,-25000.0,0.0002977,2]
[311678510,1705321840653,-175.36700291,0.000298,2]
[311678512,1705321840663,-13163.45697408,0.000298,2]
[311678514,1705321840673,-14847.0,0.000298,2]
[311678516,1705321840682,-224.598069,0.000298,2]
[311678518,1705321840695,-231.79640263,0.00029805,2]
[311678520,1705321840705,-378.91,0.00029851,2]
[311678523,1705321840715,-150.0,0.00029855,2]
[311678525,1705321840725,-250.52549763,0.00029867,2]
[311678527,1705321840734,-35000.0,0.000299,2]
[311678529,1705321840744,-55555.0,0.000299,2]
[311678531,1705321840754,-153.2220508,0.000299,17]
[311678533,1705321840763,-1943.83698686,0.00029977,2]
[311678535,1705321840773,-371.60762658,0.00029979,2]
[311678537,1705321840785,-584.0632366,0.00029979,2]
[311678539,1705321840795,-596.3045158,0.00029979,2]
[311678541,1705321840805,-1784.1017043,0.00029979,2]
[311678543,1705321840815,-1821.6462419,0.00029979,2]
[311678545,1705321840826,-48525.3978237,0.00029979,2]
[311678547,1705321840835,-49546.5636124,0.00029979,2]
[311678550,1705321840845,-642.67841263,0.0002998,3]
[311678552,1705321840855,-450.0,0.0002998,3]
[311678554,1705321840865,-382.5,0.0002998,3]
[311678556,1705321840875,-358539.14724208,0.0002998,2]
[311678558,1705321840885,-119674.95266275,0.0002998,2]
[311678622,1705321842215,-250.0,0.00024771,2]
[311678623,1705321842225,-225.21509309,0.00028426,2]
[311678624,1705321842235,-120.78490691,0.0002998,2]
[311678625,1705321842247,-631.46799349,0.0002998,2]
[311678626,1705321842260,-2409.35153101,0.0002998,2]
[311678627,1705321842299,-2132.25,0.0002998,2]
[311678658,1705321843610,-514.0,0.00026839,2]
[311678659,1705321843619,-2130.72998558,0.0002998,2]
[311678660,1705321843630,-4030.06484064,0.0002998,2]
[311678661,1705321843663,-1888.6350091,0.0002998,2]
[311678673,1705321846227,-225.21509309,0.00028795,2]
[311678674,1705321846237,-323.46685706,0.0002998,2]
[311678675,1705321846643,-12264.96957208,0.0002998,2]
[311678676,1705321846654,-227.646925,0.0002998,7]
[311678677,1705321846663,-151.0,0.0002998,7]
[311678678,1705321846672,-200.735961,0.0002998,7]
[311678679,1705321846681,-193.339131,0.0002998,7]
[311678680,1705321846690,-158.967933,0.0002998,7]
[311678681,1705321846700,-151.0,0.0002998,7]
[311678682,1705321846709,-158.725556,0.0002998,7]
[311678683,1705321846719,-194.361675,0.0002998,7]
[311678684,1705321846729,-151.0,0.0002998,7]
[311678685,1705321846739,-151.0,0.0002998,7]
[311678686,1705321846748,-194.624324,0.0002998,7]
[311678687,1705321846758,-194.624324,0.0002998,7]
[311678688,1705321846767,-151.0,0.0002998,7]
[311678689,1705321846777,-151.0,0.0002998,7]
[311678690,1705321846788,-1943.83698686,0.00029997,2]